bitfinex/quotes_SOLUSD_20250617
["timestamp","ask_amount","ask_price","bid_price","bid_amount"]
[1750152068346,5.37505616,151.86,151.82,5.82]
[1750152068558,5.37505616,151.83,151.82,5.82]
[1750152068759,5.37505616,151.83,151.73,16.47606408]
[1750152068760,26.0,151.8,151.73,16.47606408]
[1750152068962,5.37505616,151.76,151.73,16.47606408]
[1750152069273,27.42,151.75,151.74,5.37505616]
[1750152069469,27.44,151.77,151.74,5.37505616]
[1750152069852,27.44,151.77,151.75,5.6593793]
[1750152070059,33.7156,151.82,151.76,5.37505616]
[1750152070060,26.0,151.82,151.76,5.37505616]
[1750152070277,32.83505616,151.81,151.77,5.82]
[1750152070782,5.37505616,151.8,151.78,6.58848333]
[1750152070991,32.83505616,151.81,151.78,6.58848333]
[1750152071287,9.24293252,151.85,151.78,23.05969165]
[1750152071493,9.24293252,151.85,151.79,0.28432314]
[1750152071796,5.37505616,151.83,151.78,23.05969165]
[1750152072079,5.37505616,151.82,151.78,6.58848333]
[1750152072270,5.37505616,151.83,151.79,0.28432314]
[1750152072953,5.37505616,151.83,151.78,28.43474781]
[1750152072954,5.37505616,151.82,151.78,6.58848333]
[1750152073156,27.92,151.84,151.8,5.37505616]
[1750152073457,33.29505616,151.84,151.79,5.6593793]
[1750152074067,27.92,151.84,151.8,5.37505616]
[1750152074282,27.92,151.84,151.81,5.37505616]
[1750152074464,9.24293252,151.85,151.79,18.933972]
[1750152074668,27.96,151.84,151.82,5.37505616]
[1750152074871,27.96,151.84,151.83,6.58631364]
[1750152077183,27.98,151.84,151.83,6.58631364]
[1750152078381,27.94,151.84,151.83,6.58631364]
[1750152079092,27.94,151.84,151.83,11.9613698]
[1750152079293,27.94,151.84,151.83,6.58631364]
[1750152079470,27.94,151.84,151.83,11.9613698]
[1750152080193,9.24293252,151.85,151.84,0.28432314]
[1750152080498,9.24293252,151.85,151.84,11.7993793]
[1750152081096,9.24293252,151.85,151.84,18.38525917]
[1750152082314,27.92,151.87,151.84,53.49960771]
[1750152082467,5.37505616,151.89,151.84,48.12455155]
[1750152082663,5.37505616,151.88,151.84,18.38525917]
[1750152082864,5.37505616,151.85,151.84,6.14]
[1750152083069,33.31505616,151.85,151.79,12.72804927]
[1750152083272,5.37505616,151.82,151.79,12.72804927]
[1750152083505,27.94,151.81,151.79,12.72804927]
[1750152084004,27.94,151.81,151.79,18.10310543]
[1750152084178,27.94,151.81,151.8,5.6593793]
[1750152084573,33.31505616,151.81,151.79,12.72804927]
[1750152084822,33.31505616,151.81,151.79,6.14]
[1750152084823,5.37505616,151.8,151.79,6.14]
[1750152085310,5.37505616,151.8,151.73,6.46]
[1750152085472,5.37505616,151.8,151.76,5.37505616]
[1750152085680,27.94,151.81,151.74,41.71541925]
[1750152086007,5.37505616,151.79,151.75,5.37505616]
[1750152086222,28.3,151.78,151.75,5.37505616]
[1750152086516,28.3,151.78,151.76,5.37505616]
[1750152086813,28.3,151.78,151.77,6.58891744]
[1750152089518,28.3,151.78,151.75,14.89789071]
[1750152090702,28.3,151.78,151.75,6.58978583]
[1750152090703,8.02378174,151.77,151.75,6.58978583]
[1750152091022,36.32378174,151.78,151.75,6.58978583]
[1750152092108,28.3,151.78,151.75,14.61356757]
[1750152092325,28.44,151.78,151.76,8.02378174]
[1750152092617,28.44,151.78,151.75,6.58978583]
[1750152092922,8.02378174,151.77,151.74,6.87439837]
[1750152093102,8.02378174,151.75,151.73,13.05052278]
[1750152093304,28.42,151.75,151.73,13.05052278]
[1750152093716,36.44378174,151.75,151.73,13.05052278]
[1750152095135,28.42,151.75,151.73,13.05052278]
[1750152097422,8.02378174,151.74,151.73,6.46]
[1750152097824,36.44378174,151.75,151.73,6.46]
[1750152098632,27.5115,151.79,151.73,13.0505652]
[1750152098633,28.38,151.74,151.73,13.0505652]
[1750152098837,36.40378174,151.74,151.73,6.46]
[1750152099923,42.99400185,151.74,151.73,6.46]
[1750152100132,42.99400185,151.74,151.68,13.05267685]
[1750152100321,28.38,151.74,151.68,21.07645859]
[1750152100530,8.02378174,151.72,151.68,21.07645859]
[1750152100841,28.4,151.71,151.68,21.07645859]
[1750152102235,28.4,151.71,151.68,13.05267685]
[1750152102439,28.4,151.71,151.68,21.07645859]
[1750152108951,28.4,151.71,151.68,18.40735619]
[1750152111959,28.28,151.79,151.77,5.35467934]
[1750152112445,28.28,151.79,151.76,0.28432314]
[1750152112655,28.28,151.79,151.77,5.35467934]
[1750152113337,28.28,151.79,151.76,5.35467934]
[1750152113520,5.35467934,151.78,151.75,6.46]
[1750152113728,5.35467934,151.77,151.75,6.46]
[1750152114033,28.28,151.76,151.75,6.46]
[1750152114231,28.28,151.76,151.75,13.04978583]
[1750152115339,28.28,151.76,151.75,6.46]
[1750152115536,33.63467934,151.76,151.75,6.46]
[1750152115940,28.28,151.76,151.75,6.46]
[1750152117652,28.28,151.76,151.75,13.04978583]
[1750152117856,28.22,151.76,151.75,13.04978583]
[1750152118031,28.22,151.76,151.75,18.40446517]
[1750152118357,28.22,151.77,151.75,13.04978583]
[1750152119937,33.57467934,151.77,151.75,13.04978583]
[1750152120135,5.35467934,151.76,151.75,6.46]
[1750152120632,28.22,151.77,151.75,6.46]
[1750152120633,33.57467934,151.77,151.75,6.46]
[1750152121063,28.22,151.77,151.75,13.04972089]
[1750152124064,5.35467934,151.81,151.76,5.35467934]
[1750152124265,6.6153,151.84,151.76,5.35467934]
[1750152124266,11.96997934,151.84,151.79,5.35467934]
[1750152124439,28.14,151.83,151.79,5.35467934]
[1750152124638,33.49467934,151.83,151.79,5.35467934]
[1750152124867,33.49467934,151.82,151.78,5.35467934]
[1750152125073,5.35467934,151.81,151.77,5.63900248]
[1750152125570,5.35467934,151.79,151.75,13.04972089]
[1750152125757,28.14,151.78,151.75,18.40440023]
[1750152126869,28.14,151.78,151.75,21.07408762]
[1750152127780,26.0,151.82,151.76,0.28432314]
[1750152127986,28.1,151.81,151.77,8.02436673]
[1750152128382,26.0,151.82,151.78,8.02436673]
[1750152128383,28.1,151.8,151.78,8.02436673]
[1750152128582,28.1,151.8,151.79,8.02436673]
[1750152128890,28.12,151.81,151.79,8.02436673]
[1750152129069,28.12,151.81,151.8,8.02436673]
[1750152129389,28.12,151.81,151.76,18.933972]
[1750152129390,28.12,151.81,151.76,0.28432314]
[1750152129696,36.14436673,151.81,151.77,8.02436673]
[1750152130290,36.14436673,151.81,151.78,6.58848333]
[1750152130783,28.12,151.81,151.78,6.58848333]
[1750152131120,28.12,151.81,151.78,14.61285006]
[1750152131294,28.12,151.81,151.79,8.02436673]
[1750152131894,8.02436673,151.83,151.78,24.63409165]
[1750152131895,28.1,151.83,151.78,24.63409165]
[1750152132072,28.1,151.83,151.79,8.30868987]
[1750152132274,28.12,151.82,151.8,6.58761528]
[1750152132788,28.12,151.82,151.8,14.61198201]
[1750152133494,34.02436673,151.86,151.81,8.30868987]
[1750152133693,28.1,151.85,151.81,8.30868987]
[1750152134403,28.1,151.85,151.82,6.58674746]
[1750152134813,34.02436673,151.86,151.82,13.14674746]
[1750152135015,28.08,151.85,151.82,13.14674746]
[1750152135430,34.02436673,151.83,151.82,6.56]
[1750152135714,44.50077815,151.83,151.76,6.56]
[1750152135886,8.02436673,151.78,151.76,6.56]
[1750152136083,28.1,151.77,151.76,6.56]
[1750152136519,28.1,151.77,151.76,13.1493516]
[1750152138117,8.02436673,151.83,151.78,0.14216157]
[1750152138290,28.1,151.82,151.78,8.1665283]
[1750152138490,8.02436673,151.81,151.78,6.58831602]
[1750152140117,28.1,151.82,151.78,6.58831602]
[1750152140317,8.02436673,151.81,151.78,6.58831602]
[1750152140821,8.02436673,151.81,151.77,6.58891744]
[1750152141820,8.02436673,151.81,151.77,14.61328417]
[1750152142023,36.12436673,151.82,151.77,14.61328417]
[1750152142694,8.02436673,151.81,151.77,14.61328417]
[1750152143812,28.1,151.82,151.79,8.02436673]
[1750152144031,8.02436673,151.8,151.77,6.58891744]
[1750152144201,36.04436673,151.79,151.77,6.58891744]
[1750152144598,36.04436673,151.79,151.76,13.14917775]
[1750152144931,8.02436673,151.78,151.76,6.56]
[1750152145821,36.04436673,151.79,151.76,13.14927189]
[1750152146224,8.02436673,151.78,151.76,6.56]
[1750152146602,8.02436673,151.78,151.76,13.14934201]
[1750152147726,8.02436673,151.78,151.76,6.56]
[1750152147923,8.02436673,151.77,151.76,6.56]
[1750152149797,28.02,151.79,151.76,6.56]
[1750152150020,6.4436325,151.81,151.76,13.1493516]
[1750152150221,8.02436673,151.84,151.79,8.02436673]
[1750152150526,36.47601512,151.85,151.81,8.02436673]
[1750152150746,27.98,151.84,151.81,8.02436673]
[1750152151324,27.98,151.83,151.81,8.02436673]
[1750152151540,27.98,151.83,151.82,6.58674746]
[1750152152458,6.12263327,151.93,151.82,14.61111419]
[1750152152643,8.02436673,151.88,151.84,8.02436673]
[1750152152943,27.98,151.87,151.84,8.02436673]
[1750152153453,8.02436673,151.88,151.84,8.02436673]
[1750152153646,27.98,151.87,151.85,6.58544616]
[1750152153836,27.98,151.86,151.85,6.58544616]
[1750152154553,34.02436673,151.89,151.85,6.58544616]
[1750152154724,27.96,151.88,151.85,14.60981289]
[1750152156647,27.96,151.88,151.83,6.44]
[1750152156648,35.98436673,151.88,151.83,6.44]
[1750152156837,8.02436673,151.86,151.83,6.44]
[1750152157036,27.94,151.85,151.83,6.44]
[1750152157242,8.02436673,151.84,151.83,6.44]
[1750152157636,8.02436673,151.84,151.8,6.58749635]
[1750152160252,8.02436673,151.83,151.8,6.58749635]
[1750152160452,27.94,151.82,151.79,6.58804927]
[1750152160849,8.02436673,151.81,151.78,13.02832103]
[1750152161043,8.02436673,151.8,151.78,6.44]
[1750152161243,27.94,151.79,151.78,6.44]
[1750152164753,27.94,151.79,151.78,13.02848333]
[1750152168365,27.94,151.79,151.78,21.05285006]
[1750152168769,27.94,151.79,151.78,13.02848333]
[1750152169457,27.94,151.79,151.78,6.44]
[1750152171468,27.94,151.79,151.78,13.02848333]
[1750152172067,35.96436673,151.79,151.78,6.44]
[1750152173379,27.94,151.79,151.78,6.44]
[1750152173857,35.96436673,151.79,151.78,6.44]
[1750152175777,35.96436673,151.79,151.76,6.58916769]
[1750152176284,35.96436673,151.79,151.74,14.46436673]
[1750152176285,8.02436673,151.77,151.74,6.44]
[1750152176467,27.82,151.76,151.74,21.05451176]
[1750152176856,27.82,151.76,151.74,18.38080632]
[1750152178169,6.58768173,151.8,151.74,18.38080632]
[1750152178170,26.0,151.8,151.76,6.5893516]
[1750152178372,27.8,151.79,151.76,6.5893516]
[1750152178581,33.15066129,151.79,151.76,6.5893516]
[1750152179081,26.0,151.8,151.76,11.94001289]
[1750152179290,27.8,151.79,151.76,11.94001289]
[1750152179780,5.35066129,151.82,151.77,5.35066129]
[1750152179991,27.78,151.81,151.77,5.35066129]
[1750152180490,27.78,151.81,151.78,6.58848333]
[1750152181374,10.25671428,151.83,151.79,5.35066129]
[1750152181677,2.45527738,151.83,151.8,5.35066129]
[1750152181879,27.76,151.82,151.81,5.35066129]
[1750152182067,27.76,151.82,151.79,5.63498443]
[1750152182262,32.58506813,151.86,151.81,12.22216577]
[1750152182263,26.0,151.86,151.81,12.22216577]
[1750152182460,27.76,151.85,151.82,5.35066129]
[1750152182771,4.90731401,151.9,151.84,5.35066129]
[1750152183089,35.56627885,151.89,151.84,5.35066129]
[1750152183272,3.43222014,151.91,151.88,5.35066129]
[1750152183478,27.8,151.91,151.88,6.3]
[1750152183796,27.8,151.91,151.86,1.87652314]
[1750152183797,5.35066129,151.9,151.87,6.3]
[1750152184189,27.8,151.91,151.87,6.3]
[1750152184368,5.35066129,151.96,151.9,0.28432314]
[1750152184699,5.35066129,151.93,151.89,11.93437318]
[1750152184878,35.81151578,151.92,151.88,6.58399635]
[1750152185889,27.8,151.92,151.88,14.59551213]
[1750152186072,35.81151578,151.92,151.88,6.58399635]
[1750152186470,35.81151578,151.92,151.88,14.59551213]
[1750152186674,35.81151578,151.92,151.88,6.58399635]
[1750152186871,35.81151578,151.92,151.87,20.89593495]
[1750152186872,27.8,151.92,151.87,20.89593495]
[1750152187073,35.81151578,151.92,151.87,20.89593495]
[1750152187718,8.01151578,151.91,151.87,20.89593495]
[1750152188293,35.81151578,151.92,151.87,20.89593495]
[1750152190307,8.01151578,151.91,151.87,20.89593495]
[1750152190684,35.81151578,151.92,151.87,20.89593495]
[1750152190888,8.01151578,151.91,151.87,20.89593495]
[1750152191615,8.01151578,151.91,151.87,12.88441917]
[1750152191914,8.01151578,151.89,151.87,12.88456747]
[1750152192086,27.74,151.88,151.87,12.88456747]
[1750152192293,27.74,151.88,151.87,6.3]
[1750152192610,27.74,151.88,151.87,12.88457891]
[1750152192813,27.74,151.88,151.87,6.3]
[1750152193016,35.75151578,151.88,151.87,6.3]
[1750152193400,27.74,151.88,151.87,6.3]
[1750152194003,35.75151578,151.88,151.83,6.58631364]
[1750152194191,8.01151578,151.87,151.83,14.59782942]
[1750152194386,27.74,151.88,151.84,8.01151578]
[1750152194590,26.0,151.92,151.87,8.01151578]
[1750152194806,27.76,151.91,151.89,8.01151578]
[1750152195197,8.01151578,151.93,151.89,8.01151578]
[1750152195398,8.01151578,151.95,151.91,8.01151578]
[1750152195718,27.78,151.94,151.91,8.01151578]
[1750152196421,27.78,151.94,151.91,6.5828451]
[1750152196998,8.01151578,151.95,151.91,6.5828451]
[1750152197315,27.78,151.93,151.91,6.5828451]
[1750152197489,26.0,151.96,151.91,6.5828451]
[1750152197685,27.76,151.95,151.92,8.01151578]
[1750152197900,27.76,151.94,151.91,14.59436088]
[1750152199300,26.0,151.96,151.92,8.01151578]
[1750152199504,27.76,151.95,151.92,8.01151578]
[1750152199704,26.0,151.96,151.93,0.28432314]
[1750152199919,27.74,151.95,151.93,0.28432314]
[1750152200928,34.01151578,151.96,151.93,6.86601365]
[1750152201120,27.74,151.95,151.93,6.86601365]
[1750152204339,27.7,151.95,151.93,6.86601365]
[1750152205627,27.7,151.95,151.93,0.28432314]
[1750152205826,33.03771335,151.95,151.92,6.58233872]
[1750152206135,27.7,151.95,151.92,6.58233872]
[1750152206629,31.33771335,151.93,151.87,6.22]
[1750152206831,5.33771335,151.88,151.87,6.22]
[1750152207036,32.99771335,151.88,151.87,6.22]
[1750152207714,39.58185872,151.88,151.87,6.22]
[1750152208331,39.58185872,151.88,151.82,12.80662347]
[1750152208523,5.33771335,151.85,151.82,12.80662347]
[1750152208723,27.66,151.84,151.82,12.80662347]
[1750152211951,27.66,151.84,151.82,20.82523088]
[1750152212551,27.66,151.84,151.82,12.80662347]
[1750152212758,27.66,151.84,151.82,20.82523088]
[1750152213253,27.66,151.84,151.82,12.80662347]
[1750152215253,27.62,151.85,151.83,8.30293055]
[1750152215439,27.62,151.86,151.84,8.01860741]
[1750152216365,27.62,151.86,151.85,6.58544616]
[1750152219170,8.01860741,151.88,151.85,6.58544616]
[1750152219465,27.56,151.86,151.85,6.58544616]
[1750152220493,27.56,151.86,151.83,8.01860741]
[1750152220645,8.01860741,151.85,151.82,6.22]
[1750152220846,35.57860741,151.86,151.82,6.22]
[1750152221080,8.01860741,151.85,151.82,12.80656828]
[1750152221791,27.56,151.86,151.82,20.82517569]
[1750152221950,35.57860741,151.86,151.82,20.82517569]
[1750152222265,27.56,151.86,151.83,8.01860741]
[1750152222977,27.52,151.85,151.83,8.01860741]
[1750152223680,27.52,151.85,151.84,6.58587987]
[1750152230023,27.52,151.85,151.83,14.88924419]
[1750152230212,27.46,151.85,151.84,8.01860741]
[1750152230818,27.46,151.85,151.84,5.3434769]
[1750152231525,27.46,151.85,151.84,6.58587987]
[1750152232125,27.46,151.86,151.84,6.58587987]
[1750152233131,27.46,151.86,151.84,11.92935677]
[1750152233906,27.46,151.86,151.84,6.58587987]
[1750152234530,5.3434769,151.88,151.84,6.58587987]
[1750152234830,27.46,151.86,151.84,6.58587987]
[1750152235022,27.46,151.86,151.84,11.92935677]
[1750152235209,26.0,151.9,151.85,5.3434769]
[1750152235412,32.7834769,151.89,151.84,28.39405645]
[1750152235625,5.3434769,151.88,151.84,11.92935677]
[1750152236137,5.3434769,151.87,151.84,6.58587987]
[1750152236305,27.44,151.86,151.84,6.58587987]
[1750152240834,5.3434769,151.85,151.82,6.22]
[1750152241040,27.44,151.86,151.82,18.15005316]
[1750152241410,32.7834769,151.86,151.82,12.80657626]
[1750152241610,31.3434769,151.83,151.82,6.22]
[1750152241927,7.6501,151.87,151.82,12.80674746]
[1750152242229,27.4,151.86,151.82,6.22]
[1750152242409,5.3434769,151.83,151.82,6.22]
[1750152242605,32.7434769,151.83,151.82,6.22]
[1750152244244,46.354072,151.91,151.83,18.64964886]
[1750152244245,7.6501,151.91,151.83,18.64964886]
[1750152244550,5.3434769,151.87,151.82,18.15012614]
[1750152244763,27.4,151.86,151.83,5.3434769]
[1750152245054,27.38,151.86,151.83,5.3434769]
[1750152245347,27.38,151.86,151.77,1.6291]
[1750152245348,5.3434769,151.84,151.79,0.28432314]
[1750152245530,27.38,151.83,151.81,11.4234769]
[1750152246352,27.38,151.83,151.81,6.08]
[1750152246557,27.38,151.83,151.82,5.3434769]
[1750152246922,27.38,151.83,151.82,11.93022436]
[1750152248359,27.38,151.83,151.82,6.58674746]
[1750152249128,27.38,151.83,151.82,11.93022436]
[1750152249668,27.38,151.83,151.82,6.58674746]
[1750152249992,27.38,151.83,151.81,6.08]
[1750152250279,5.3434769,151.82,151.81,6.08]
[1750152251060,11.93022436,151.82,151.81,6.08]
[1750152251265,6.58674746,151.82,151.76,18.01268202]
[1750152251477,5.3434769,151.8,151.76,12.66920512]
[1750152251637,32.7234769,151.79,151.76,12.66920512]
[1750152252750,27.38,151.79,151.76,12.66920512]
[1750152253534,32.7234769,151.79,151.76,12.66920512]
[1750152256359,5.3434769,151.78,151.76,6.08]
[1750152256540,27.38,151.79,151.76,6.08]
[1750152256541,5.3434769,151.77,151.76,6.08]
[1750152257971,5.3434769,151.78,151.76,6.08]
[1750152258341,5.3434769,151.78,151.76,12.66932177]
[1750152259262,26.0,151.84,151.76,12.66932177]
[1750152259454,5.3434769,151.82,151.77,5.3434769]
[1750152259659,31.3434769,151.82,151.77,5.3434769]
[1750152259971,155.68439693,151.88,151.81,5.3434769]
[1750152260275,26.0,151.84,151.82,5.3434769]
[1750152260449,53.38,151.84,151.82,5.3434769]
[1750152260645,12.9212769,151.89,151.83,5.3434769]
[1750152260847,27.38,151.88,151.84,5.3434769]
[1750152261051,26.0,151.88,151.84,5.3434769]
[1750152261454,27.38,151.87,151.84,5.3434769]
[1750152262055,27.38,151.87,151.84,11.92932496]
[1750152262587,27.38,151.86,151.84,11.92932496]
[1750152263234,26.0,151.88,151.84,11.92932496]
[1750152263235,27.38,151.85,151.84,11.92932496]
[1750152263639,26.0,151.88,151.84,11.92932496]
[1750152263938,26.0,151.88,151.86,5.3434769]
[1750152264139,27.38,151.87,151.86,5.3434769]
[1750152265076,26.0,151.88,151.86,11.92831004]
[1750152265242,27.38,151.87,151.86,6.58483314]
[1750152265446,27.38,151.87,151.86,11.92831004]
[1750152265951,27.38,151.87,151.86,6.58483314]
[1750152266547,26.0,151.88,151.86,6.58483314]
[1750152266748,27.36,151.87,151.86,6.58483314]
[1750152267445,26.0,151.88,151.86,6.58483314]
[1750152267751,27.36,151.87,151.86,5.3434769]
[1750152268270,26.0,151.88,151.86,5.3434769]
[1750152268455,27.36,151.87,151.86,5.3434769]
[1750152268968,7.5778,151.93,151.86,11.92848941]
[1750152269143,5.3434769,151.92,151.88,5.3434769]
[1750152269347,32.7034769,151.92,151.88,5.3434769]
[1750152269850,32.7034769,151.92,151.86,6.58501251]
[1750152270173,32.7034769,151.92,151.88,5.3434769]
[1750152270564,27.36,151.91,151.88,11.92750293]
[1750152270960,32.7034769,151.91,151.88,6.58402603]
[1750152271272,5.3434769,151.89,151.84,6.04]
[1750152271470,5.3434769,151.87,151.84,6.04]
[1750152272578,27.36,151.88,151.84,6.04]
[1750152272780,5.3434769,151.87,151.84,6.04]
[1750152272946,5.3434769,151.85,151.84,6.04]
[1750152273150,32.7034769,151.85,151.84,6.04]
[1750152274389,27.36,151.85,151.84,6.04]
[1750152274698,27.36,151.85,151.84,17.96935677]
[1750152275185,31.3434769,151.88,151.84,17.96935677]
[1750152275372,27.36,151.87,151.84,17.96935677]
[1750152275976,27.36,151.87,151.84,12.62587987]
[1750152276362,27.36,151.87,151.84,17.96935677]
[1750152277376,31.3434769,151.88,151.84,17.96935677]
[1750152277602,27.36,151.87,151.84,17.96935677]
[1750152278658,27.36,151.86,151.84,12.62587987]
[1750152279865,27.36,151.85,151.84,12.62587987]
[1750152280277,27.36,151.85,151.84,6.04]
[1750152280278,32.7034769,151.85,151.84,6.04]
[1750152282570,39.28892306,151.85,151.84,6.04]
[1750152283087,33.94544616,151.85,151.84,6.04]
[1750152283289,27.36,151.85,151.84,6.04]
[1750152284492,27.36,151.85,151.84,12.62587987]
[1750152284995,27.36,151.85,151.84,6.04]
[1750152285667,27.36,151.85,151.84,12.62587987]
[1750152286477,27.36,151.85,151.84,17.96935677]
[1750152286680,27.36,151.86,151.84,17.96935677]
[1750152286897,27.36,151.86,151.85,5.3434769]
[1750152287108,27.36,151.86,151.85,11.92892306]
[1750152287270,31.3434769,151.9,151.85,11.92892306]
[1750152287477,5.3434769,151.87,151.84,12.62571646]
[1750152287801,27.36,151.86,151.84,12.62571646]
[1750152293300,27.36,151.85,151.84,12.62571646]
[1750152295509,27.36,151.85,151.84,6.04]
[1750152295813,32.7034769,151.85,151.84,6.04]
[1750152296726,39.28892306,151.85,151.84,6.04]
[1750152298604,39.28892306,151.85,151.79,12.62786162]
[1750152298803,5.3434769,151.8,151.79,6.04]
[1750152299023,27.36,151.8,151.79,6.04]
[1750152299912,27.36,151.8,151.79,17.97152617]
[1750152300419,53.36,151.82,151.79,17.97152617]
[1750152302402,58.7034769,151.82,151.79,12.62804927]
[1750152303018,53.36,151.82,151.79,17.97152617]
[1750152303318,58.7034769,151.82,151.79,12.62804927]
[1750152304984,5.3434769,151.81,151.79,6.04]
[1750152305206,32.7034769,151.8,151.79,6.04]
[1750152308225,27.36,151.8,151.79,6.04]
[1750152311916,26.45044886,151.88,151.79,17.97152617]
[1750152311917,5.3434769,151.84,151.79,17.97152617]
[1750152312103,27.36,151.83,151.79,17.97152617]
[1750152312304,5.3434769,151.81,151.79,6.04]
[1750152312513,27.36,151.81,151.79,6.04]
[1750152312714,32.7034769,151.81,151.79,6.04]
[1750152313024,26.0,151.77,151.7,18.64964886]
[1750152313223,5.3434769,151.73,151.71,6.04]
[1750152313427,32.7034769,151.72,151.67,1.5238]
[1750152313753,5.3434769,151.71,151.67,1.5238]
[1750152313900,27.36,151.7,151.67,6.8672769]
[1750152314103,27.36,151.7,151.69,5.3434769]
[1750152314426,27.36,151.7,151.68,5.3434769]
[1750152314727,11.93458269,151.72,151.67,6.8672769]
[1750152314914,27.36,151.71,151.67,6.8672769]
[1750152315418,32.7034769,151.71,151.67,6.8672769]
[1750152315730,5.3434769,151.7,151.67,1.5238]
[1750152315912,27.36,151.69,151.67,1.5238]
[1750152316116,32.7034769,151.69,151.66,6.04]
[1750152317330,27.36,151.69,151.66,11.3834769]
[1750152318209,5.3434769,151.68,151.66,6.04]
[1750152318515,32.7034769,151.67,151.66,6.04]
[1750152319331,27.36,151.67,151.66,6.04]
[1750152319527,32.7034769,151.67,151.66,6.04]
[1750152320322,27.36,151.67,151.66,6.04]
[1750152320728,32.59211308,151.7,151.66,6.04]
[1750152320729,26.0,151.7,151.66,17.97717332]
[1750152320931,27.36,151.69,151.67,5.3434769]
[1750152321136,27.36,151.69,151.66,17.97717332]
[1750152321535,27.36,151.69,151.66,12.63369642]
[1750152321742,27.36,151.69,151.66,17.97717332]
[1750152321916,27.36,151.69,151.66,11.3834769]
[1750152322111,32.7034769,151.69,151.66,6.04]
[1750152323424,27.36,151.68,151.66,6.04]
[1750152324518,27.36,151.68,151.66,12.63364337]
[1750152325036,27.36,151.68,151.66,17.97712027]
[1750152325236,16.47215026,151.78,151.67,5.3434769]
[1750152325440,26.0,151.73,151.67,5.3434769]
[1750152325642,58.7034769,151.72,151.68,5.3434769]
[1750152326015,5.3434769,151.7,151.66,17.97712027]
[1750152326235,27.36,151.69,151.66,17.97712027]
[1750152327540,27.36,151.69,151.68,5.3434769]
[1750152327841,14.34569166,151.76,151.69,20.562972]
[1750152328047,27.36,151.75,151.72,5.3434769]
[1750152328420,27.36,151.75,151.71,5.3434769]
[1750152328730,32.7034769,151.75,151.71,5.3434769]
[1750152329241,27.36,151.75,151.71,11.93478304]
[1750152329423,27.36,151.75,151.71,6.59130614]
[1750152329630,5.3434769,151.74,151.71,6.59130614]
[1750152330222,27.36,151.73,151.71,6.59130614]
[1750152330547,27.36,151.73,151.71,11.93478304]
[1750152331122,27.36,151.73,151.72,5.3434769]
[1750152331321,27.36,151.73,151.72,11.93437717]
[1750152332246,27.36,151.73,151.72,6.59090027]
[1750152332455,5.3434769,151.75,151.72,6.59090027]
[1750152332619,27.36,151.74,151.72,6.59090027]
[1750152333021,27.36,151.74,151.72,11.3834769]
[1750152333923,27.36,151.74,151.72,12.63097134]
[1750152335047,27.36,151.73,151.72,6.04]
[1750152335250,27.36,151.73,151.72,12.63108884]
[1750152337162,5.3434769,151.75,151.72,12.63108884]
[1750152337329,27.36,151.73,151.72,6.04]
[1750152337823,32.7034769,151.73,151.72,6.04]
[1750152338024,26.0,151.7,151.66,6.02]
[1750152338232,32.7034769,151.69,151.66,12.61364593]
[1750152338641,32.7034769,151.69,151.66,6.02]
[1750152338839,5.3434769,151.68,151.66,6.02]
[1750152347047,27.36,151.69,151.66,17.95717007]
[1750152348149,32.7034769,151.69,151.66,12.61369317]
[1750152348357,5.3434769,151.69,151.66,12.61369317]
[1750152348542,27.36,151.68,151.66,12.61369317]
[1750152348742,27.36,151.68,151.66,6.02]
[1750152349038,32.7034769,151.68,151.66,6.02]
[1750152349256,5.3434769,151.67,151.66,6.02]
[1750152349541,27.36,151.68,151.66,6.02]
[1750152349741,32.7034769,151.68,151.66,6.02]
[1750152351145,5.3434769,151.67,151.66,6.02]
[1750152351661,32.7034769,151.68,151.66,6.02]
[1750152355161,5.3434769,151.67,151.66,6.02]